bitfinex/quotes_ETHUSD_20240921
["timestamp","ask_amount","ask_price","bid_price","bid_amount"]
[1726936766773,0.55,2561.8,2561.4,0.05]
[1726936767280,0.55,2561.8,2561.4,1e-08]
[1726936768105,0.71523861,2561.9,2561.4,1e-08]
[1726936769074,3.301545,2562.0,2561.4,1e-08]
[1726936771592,2.3131,2561.8,2561.4,1e-08]
[1726936771746,2.3131,2561.8,2561.5,0.05191036]
[1726936772247,2.3131,2561.8,2561.4,1e-08]
[1726936772687,2.3131,2561.8,2561.5,0.05191036]
[1726936772854,1.34273711,2561.7,2561.4,1e-08]
[1726936773658,1.34273711,2561.7,2561.5,0.05194664]
[1726936773878,1.34273711,2561.7,2561.4,1e-08]
[1726936774268,1.34273711,2561.7,2561.5,0.05194664]
[1726936774472,0.75593671,2561.6,2561.5,0.05194664]
[1726936774675,0.75593671,2561.6,2561.4,1e-08]
[1726936775658,0.75593671,2561.6,2561.5,0.05021508]
[1726936775957,0.75593671,2561.6,2561.4,1e-08]
[1726936776607,8.47795111,2561.5,2561.4,1e-08]
[1726936786940,4.57399111,2561.5,2561.4,1e-08]
[1726936787278,3.55,2561.6,2561.4,1e-08]
[1726936787813,4.27352,2561.8,2561.4,1e-08]
[1726936787814,0.37,2561.8,2561.4,1e-08]
[1726936788328,7.91961111,2561.9,2561.4,1e-08]
[1726936788524,1.28113661,2561.8,2561.4,1e-08]
[1726936788781,0.988445,2562.0,2561.4,1e-08]
[1726936789065,2.08089111,2562.2,2561.5,0.05052181]
[1726936789216,1.71089111,2562.2,2561.5,0.05052181]
[1726936790049,5.61379111,2562.2,2561.5,0.05052181]
[1726936790240,5.61379111,2562.2,2561.4,1e-08]
[1726936790241,0.55,2562.1,2561.4,1e-08]
[1726936790581,0.55,2562.1,2561.5,0.05048223]
[1726936790767,1.39690911,2562.1,2561.5,0.05048223]
[1726936797856,5.29995911,2562.1,2561.5,0.05048223]
[1726936799667,1.71089111,2562.0,2561.5,0.05048223]
[1726936803081,1.71089111,2562.0,2560.9,4.63613458]
[1726936803082,1.71089111,2561.8,2560.9,4.63613458]
[1726936803316,1.71089111,2561.8,2561.6,0.05028778]
[1726936803522,0.94733911,2561.7,2560.8,4.63613458]
[1726936803703,0.94733911,2561.7,2560.8,3.0]
[1726936803879,0.94733911,2561.7,2560.9,0.05047156]
[1726936804079,1.71089111,2561.6,2560.9,0.05047156]
[1726936804330,2.26089111,2561.4,2560.9,0.05047156]
[1726936804628,0.55,2561.4,2560.6,1.63613458]
[1726936804781,0.55,2561.4,2560.7,0.05052075]
[1726936805317,0.55,2561.4,2560.5,3.34702569]
[1726936805837,0.55,2561.4,2560.6,0.05058989]
[1726936805838,1.71089111,2560.9,2560.6,0.05058989]
[1726936806037,1.71089111,2560.9,2560.7,0.04397757]
[1726936806183,5.61576111,2560.9,2560.1,1.63613458]
[1726936806390,0.56157611,2560.8,2560.2,0.04264301]
[1726936806581,1.71089111,2560.7,2559.9,1.63613458]
[1726936806777,1.71089111,2560.7,2560.0,0.04269556]
[1726936806981,1.71089111,2560.3,2559.8,0.0376675]
[1726936807228,1.71089111,2560.3,2559.9,0.04272184]
[1726936807381,1.71089111,2560.5,2559.9,0.04272184]
[1726936807582,0.56162411,2560.4,2559.9,0.04272184]
[1726936810012,0.56157611,2560.8,2559.9,1.75361295]
[1726936810250,0.55,2560.7,2559.9,1.75361295]
[1726936816260,0.56157611,2560.8,2560.1,1.71089111]
[1726936816426,0.56157611,2560.8,2560.2,0.04287023]
[1726936816760,0.56157611,2560.8,2559.9,1.71089111]
[1726936817118,0.56157611,2560.8,2560.0,0.04314998]
[1726936817319,0.22724672,2560.7,2560.0,0.04314998]
[1726936817856,7.43,2561.0,2560.3,1.71089111]
[1726936818246,7.43,2561.0,2560.4,0.04304488]
[1726936818444,7.43,2561.0,2560.3,1.71089111]
[1726936818760,7.43,2561.0,2560.1,1.71089111]
[1726936819180,7.43,2561.0,2560.2,0.04309743]
[1726936819321,0.743,2560.9,2560.2,0.04309743]
[1726936820564,1.71089111,2560.6,2560.2,0.04309743]
[1726936820950,1.71089111,2560.6,2559.8,0.0376675]
[1726936821343,1.71089111,2560.6,2559.9,0.04312356]
[1726936821668,1.71089111,2560.6,2559.8,0.0376675]
[1726936822073,0.55,2560.7,2559.8,0.0376675]
[1726936822368,0.55,2560.5,2559.9,0.04312356]
[1726936822540,2.3548,2560.4,2559.9,0.04312356]
[1726936832200,2.3548,2560.4,2559.9,0.08370234]
[1726936841834,0.55,2560.5,2559.9,0.08370234]
[1726936842187,0.55,2560.5,2559.8,1.75311083]
[1726936842393,0.43248883,2560.4,2559.8,1.75311083]
[1726936842690,0.55,2560.5,2559.8,1.75311083]
[1726936843032,0.55,2560.5,2559.8,0.0376675]
[1726936843242,2.89470503,2560.8,2560.0,1.71544333]
[1726936843388,0.61210503,2560.8,2560.2,1.71544333]
[1726936843586,7.43,2561.0,2560.2,1.71544333]
[1726936843803,8.43826,2561.0,2560.2,1.71544333]
[1726936844293,8.43826,2561.0,2560.3,0.08374066]
[1726936844489,1.00826,2561.0,2560.3,0.08374066]
[1726936844730,3.99804333,2561.1,2560.2,1.71544333]
[1726936845028,3.99804333,2561.1,2560.3,0.08374066]
[1726936845204,0.55,2561.0,2560.2,1.71544333]
[1726936845411,0.55,2561.0,2560.3,0.08374066]
[1726936845614,0.45480433,2560.9,2560.3,0.08374066]
[1726936846441,0.45480433,2560.9,2560.2,1.71544333]
[1726936846618,0.45480433,2560.9,2560.4,0.0837128]
[1726936846823,0.45480433,2560.9,2560.0,1.71544333]
[1726936847023,0.45480433,2560.9,2560.5,0.08368495]
[1726936847210,0.45480433,2560.9,2560.0,1.71544333]
[1726936847537,0.45480433,2560.9,2560.1,0.08379637]
[1726936848121,0.45480433,2560.9,2560.2,1.71544333]
[1726936848540,0.55,2561.0,2560.3,0.08374066]
[1726936848707,0.55,2561.2,2560.4,1.71544333]
[1726936849038,0.55,2561.2,2560.4,1.79915613]
[1726936850245,2.26544333,2561.2,2560.4,0.0837128]
[1726936850436,2.26544333,2561.0,2560.1,4.63613458]
[1726936850756,2.26544333,2561.0,2560.5,0.08368495]
[1726936851055,2.26544333,2561.0,2560.6,0.08365709]
[1726936851257,2.26544333,2561.0,2560.1,3.0]
[1726936851455,2.26544333,2561.0,2560.7,0.08362924]
[1726936851754,0.34632477,2560.9,2560.1,4.63613458]
[1726936851939,0.34632477,2560.9,2560.8,0.0836014]
[1726936852247,0.34632477,2560.9,2560.1,4.63613458]
[1726936852450,0.34632477,2560.9,2560.8,0.0836014]
[1726936852743,0.34632477,2560.9,2560.1,3.0]
[1726936853056,0.34632477,2560.9,2560.2,0.08376851]
[1726936854614,2.62892477,2560.9,2560.2,0.08376851]
[1726936854956,0.48943681,2560.8,2560.2,0.08376851]
[1726936855451,0.48943681,2560.8,2560.3,0.08361879]
[1726936855758,0.48943681,2560.8,2560.0,6.35157791]
[1726936856052,0.48943681,2560.8,2560.0,4.71544333]
[1726936856208,0.48943681,2560.8,2560.1,0.08367451]
[1726936857330,0.31183616,2560.7,2560.1,0.08367451]
[1726936860345,0.31183616,2560.7,2559.9,3.35157791]
[1726936860654,0.31183616,2560.7,2559.9,1.71544333]
[1726936860814,0.31183616,2560.7,2560.0,0.08370237]
[1726936861012,0.31183616,2560.7,2560.0,3.08370237]
[1726936862460,0.31183616,2560.7,2560.0,0.08370237]
[1726936863159,2.3732,2560.6,2560.0,0.08370237]
[1726936863450,0.26850362,2560.5,2560.0,0.08370237]
[1726936865974,2.86263681,2560.8,2560.1,1.71544333]
[1726936866164,10.3532,2561.0,2560.3,1.71544333]
[1726936866472,7.43,2561.0,2560.4,0.08361727]
[1726936868474,2.3732,2561.2,2560.4,0.08361727]
[1726936868634,3.52506433,2561.2,2560.4,0.08361727]
[1726936869036,3.52506433,2561.2,2560.4,3.08361727]
[1726936869956,3.52506433,2561.2,2560.4,0.08361727]
[1726936871538,5.24050766,2561.2,2560.4,0.08361727]
[1726936872271,5.24050766,2561.2,2560.5,0.08358941]
[1726936872488,0.91447977,2561.1,2560.2,3.0]
[1726936872634,0.91447977,2561.1,2560.3,0.08364512]
[1726936883661,0.55,2560.9,2560.3,0.08364512]
[1726936883864,0.55,2560.9,2560.0,4.63613458]
[1726936884037,0.55,2560.9,2560.4,0.0836074]
[1726936884241,0.85026533,2560.8,2560.0,4.63613458]
[1726936884591,0.85026533,2560.8,2560.1,0.08369097]
[1726936886282,0.85026533,2560.8,2559.8,1.67380208]
[1726936886283,0.55,2560.5,2559.8,1.67380208]
[1726936886460,0.55,2560.5,2560.2,0.08084377]
[1726936886770,0.55,2560.5,2559.8,0.0376675]
[1726936887271,2.3324,2560.4,2559.9,0.08092735]
[1726936890835,0.55,2560.7,2559.9,0.08092735]
[1726936891037,1.75056833,2560.6,2560.0,1.71544333]
[1726936891278,1.75056833,2560.6,2560.1,0.08121423]
[1726936898586,1.75056833,2560.6,2560.0,1.71544333]
[1726936899581,1.75056833,2560.6,2559.8,1.67380208]
[1726936899582,7.43,2560.8,2560.2,1.71544333]
[1726936901551,7.43,2560.8,2560.0,1.71544333]
[1726936903580,2.3324,2560.9,2560.0,1.71544333]
[1726936905053,10.31495246,2561.1,2560.2,1.71544333]
[1726936905253,0.55,2561.0,2560.2,1.71544333]
[1726936905482,2.14213368,2561.0,2560.2,1.71544333]
[1726936905861,1.59213368,2561.0,2560.2,1.71544333]
[1726936908294,1.59213368,2561.0,2560.3,0.08099382]
[1726936913859,0.55,2560.9,2560.3,0.08099382]
[1726936914060,2.2729,2560.8,2560.3,0.08099382]
[1726936914365,0.28229,2560.7,2560.4,0.08096596]
[1726936914705,0.28229,2560.7,2559.8,3.39054851]
[1726936914866,0.28229,2560.7,2559.9,0.0782186]
[1726936924610,0.28229,2560.7,2560.0,1.71544333]
[1726936925112,0.28229,2560.7,2560.1,0.07822544]
[1726936926519,0.55,2560.5,2560.1,0.07822544]
[1726936926679,2.3093,2560.3,2559.8,0.0376675]
[1726936927217,2.3093,2560.3,2559.9,0.07570989]
[1726936933224,2.3093,2560.3,2559.9,1.79115322]
[1726936933444,2.3093,2560.6,2559.9,1.79115322]
[1726936933621,0.259159,2560.5,2559.9,1.79115322]
[1726936935084,2.3093,2560.6,2559.9,1.79115322]
[1726936935283,7.43,2560.8,2560.3,1.71544333]
[1726936935721,7.43,2560.8,2560.4,0.07566943]
[1726936936084,2.3093,2560.9,2560.4,0.07566943]
[1726936936918,2.3093,2560.9,2559.9,6.35288101]
[1726936937121,0.9521627,2560.8,2560.5,0.07564158]
[1726936937326,2.3093,2560.9,2560.5,0.07564158]
[1726936937487,2.3093,2560.9,2559.9,6.35288101]
[1726936937693,2.3093,2560.9,2560.6,0.07561373]
[1726936937995,2.3093,2560.9,2559.9,6.35288101]
[1726936938191,2.3093,2560.9,2560.0,0.07326134]
[1726936938524,0.40247433,2560.8,2560.0,0.07326134]
[1726936938726,2.3093,2560.7,2560.0,1.78870467]
[1726936948959,2.3093,2560.7,2560.2,1.71544333]
[1726936949260,2.3093,2560.7,2560.3,0.07313493]
[1726936949469,2.3093,2560.7,2560.2,1.71544333]
[1726936949765,2.3093,2560.7,2560.3,0.07313493]
[1726936949969,2.58047743,2560.7,2560.3,0.07313493]
[1726936950132,2.58047743,2560.7,2560.2,1.71544333]
[1726936950331,2.58047743,2560.7,2560.3,0.07313493]
[1726936950641,2.58047743,2560.7,2560.2,1.71544333]
[1726936950842,2.58047743,2560.7,2560.4,0.07310707]
[1726936951045,0.29829518,2560.6,2560.2,1.71544333]
[1726936951350,2.3093,2560.7,2560.2,1.71544333]
[1726936951529,2.3093,2560.7,2560.3,0.07313493]
[1726936951866,2.3093,2560.7,2560.2,1.71544333]
[1726936952055,2.3093,2560.7,2560.4,0.07310707]
[1726936952382,2.3093,2560.7,2560.2,1.71544333]
[1726936952663,2.58047743,2560.7,2560.2,1.71544333]
[1726936952840,2.58047743,2560.7,2560.3,0.07313493]
[1726936953162,2.58047743,2560.7,2560.2,1.71544333]
[1726936953554,2.58047743,2560.7,2560.3,0.07313493]
[1726936953954,2.58047743,2560.7,2560.2,1.71544333]
[1726936954133,2.58047743,2560.7,2560.4,0.07310707]
[1726936954328,2.58047743,2560.7,2560.3,0.07313493]
[1726936954646,2.58047743,2560.7,2560.4,0.07307084]
[1726936954843,2.58047743,2560.7,2560.2,1.71544333]
[1726936955045,2.58047743,2560.7,2560.5,0.07304298]
[1726936955349,2.58047743,2560.7,2560.2,1.71544333]
[1726936955350,0.29829518,2560.6,2560.2,1.71544333]
[1726936955664,2.3093,2560.7,2560.2,1.71544333]
[1726936957526,2.3093,2560.7,2560.0,1.63743768]
[1726936957726,2.3093,2560.7,2559.9,4.63743768]
[1726936957925,2.3093,2560.7,2560.0,1.63743768]
[1726936958771,2.3093,2560.7,2560.0,3.35288101]
[1726936958973,0.27117743,2560.6,2560.0,3.35288101]
[1726936959132,2.4354,2560.5,2560.0,3.35288101]
[1726936959334,2.4354,2560.5,2560.0,1.71544333]
[1726936959649,0.55,2560.3,2559.8,1.67510518]
[1726936959837,2.4354,2560.3,2559.8,0.0376675]
[1726936960171,0.55,2560.5,2559.8,0.0376675]
[1726936960172,2.4354,2560.1,2559.8,0.0376675]
[1726936961541,2.4354,2560.1,2559.9,0.07315084]
[1726936962681,2.4354,2560.1,2559.8,0.0376675]
[1726936963039,2.923,2560.0,2559.9,0.07122241]
[1726936963236,2.923,2560.0,2559.9,0.03355491]
[1726936963517,1.257248,2560.0,2559.8,0.0376675]
[1726936963639,2.373,2559.9,2559.8,0.0376675]
[1726936964069,2.373,2559.9,2559.4,1.63743768]
[1726936964274,2.373,2559.9,2559.3,3.35288101]
[1726936965244,2.373,2559.9,2559.3,1.71544333]
[1726936965768,2.373,2559.9,2559.2,1.63743768]
[1726936965971,2.373,2559.7,2559.2,3.35288101]
[1726936966478,2.373,2559.7,2559.2,1.71544333]
[1726936967581,2.373,2559.7,2559.4,1.71544333]
[1726936970148,2.373,2559.7,2559.5,0.07028257]
[1726936970539,0.24354,2560.2,2559.6,1.71544333]
[1726936970767,2.373,2559.9,2559.6,1.71544333]
[1726936971050,2.373,2559.9,2559.7,0.07022683]
[1726936971251,2.6653,2559.9,2559.7,0.07022683]
[1726936971847,2.373,2559.9,2559.7,0.07022683]
[1726936972194,2.373,2560.1,2559.7,0.07022683]
[1726936972402,2.373,2560.1,2559.8,1.71544333]
[1726936972564,2.373,2560.1,2559.9,0.07035231]
[1726936973709,11.60656743,2560.6,2559.9,0.07035231]
[1726936973710,7.70117743,2560.6,2559.9,0.07035231]
[1726936974019,2.373,2560.5,2560.2,1.71544333]
[1726936974170,2.373,2560.5,2560.3,0.07018155]
[1726936974370,2.373,2560.5,2560.0,1.71544333]
[1726936974673,2.373,2560.5,2560.1,0.07023727]
[1726936981218,2.6103,2560.5,2560.1,0.07023727]
[1726936983320,0.55,2560.4,2560.1,0.07023727]
[1726936983526,2.293,2560.3,2560.1,0.07023727]
[1726936983704,2.293,2560.3,2559.8,1.71544333]
[1726936983876,2.293,2560.3,2560.2,0.06989972]
[1726936984224,2.60103,2560.3,2560.2,0.06992607]
[1726936984424,2.60103,2560.3,2559.8,1.71544333]
[1726936984572,9.14544333,2560.9,2560.0,1.71544333]
[1726936984772,2.293,2560.7,2560.1,0.06995393]
[1726936993925,2.293,2560.7,2560.1,0.06870345]
[1726936996543,2.293,2560.7,2560.2,1.71544333]
[1726936997047,2.293,2560.7,2560.3,0.0698697]
[1726936997248,3.2653,2560.7,2560.2,1.71544333]
[1726936997456,3.2653,2560.7,2560.3,0.0698697]
[1726936997845,3.2653,2560.7,2560.2,1.71544333]
[1726936998046,3.2653,2560.7,2560.3,0.0698697]
[1726936998249,3.2653,2560.7,2560.2,1.71544333]
[1726936998469,3.2653,2560.7,2560.3,0.0698697]
[1726936998969,3.2653,2560.7,2560.2,1.71544333]
[1726936999170,3.2653,2560.7,2560.4,0.06984184]
[1726936999473,0.32653,2560.6,2560.5,0.06981399]
[1726936999995,0.32653,2560.6,2560.2,1.71544333]
[1726937000150,3.2653,2560.7,2560.5,0.06981399]
[1726937000352,3.2653,2560.7,2560.2,1.71544333]
[1726937000572,3.2653,2560.7,2560.6,0.06978613]
[1726937000769,0.9723,2560.7,2560.2,1.71544333]
[1726937001084,2.293,2560.9,2560.2,1.71544333]
[1726937001248,2.293,2560.9,2560.3,0.0698697]
[1726937004597,2.293,2560.9,2560.2,1.71544333]
[1726937008776,2.293,2560.9,2560.4,1.71544333]
[1726937009401,2.9248,2561.2,2560.4,1.71544333]
[1726937009575,2.9248,2561.2,2560.5,0.06941809]
[1726937009576,0.55,2561.0,2560.5,0.06941809]
[1726937012616,1.50702433,2561.1,2560.8,1.71544333]
[1726937013115,1.50702433,2561.1,2560.6,1.71544333]
[1726937013468,1.50702433,2561.1,2560.7,0.06920096]
[1726937014212,2.3748,2560.9,2560.7,0.06275805]
[1726937014373,0.29248,2560.8,2560.7,0.06275805]
[1726937014574,0.29248,2560.8,2560.1,4.63743768]
[1726937014882,0.84248,2560.8,2560.1,4.71544333]
[1726937015081,0.84248,2560.8,2560.2,0.06701706]
[1726937018198,0.84248,2560.8,2560.2,4.70445474]
[1726937018518,0.321728,2560.7,2560.2,4.70445474]
[1726937028948,0.321728,2560.7,2560.3,3.0]
[1726937029337,0.321728,2560.7,2560.4,0.06696465]
[1726937030051,0.321728,2560.7,2560.2,4.63743768]
[1726937030251,0.55,2560.8,2560.3,0.0669925]
[1726937030446,0.55,2560.8,2560.3,4.63743768]
[1726937030776,0.55,2560.8,2560.4,0.06696465]
[1726937035420,2.281,2560.7,2560.4,0.06696465]
[1726937035771,2.281,2560.7,2560.4,0.05696465]
[1726937036011,0.2831,2560.6,2560.4,0.05696465]
[1726937036677,0.2831,2560.6,2560.2,4.63743768]
[1726937036883,0.2831,2560.6,2560.3,0.06662954]
[1726937037099,0.2831,2560.6,2560.2,4.63743768]
[1726937037303,0.2831,2560.6,2560.4,0.06660168]
[1726937037501,0.2831,2560.6,2560.3,0.06662954]
[1726937037703,0.2831,2560.6,2560.5,0.06657383]
[1726937038007,0.2831,2560.6,2560.4,0.06660168]
[1726937038206,0.2831,2560.6,2560.5,0.06657383]
[1726937038608,0.2831,2560.6,2560.2,4.63743768]
[1726937039005,0.2831,2560.6,2560.3,0.06662954]
[1726937039190,0.2831,2560.6,2560.3,1.70406722]
[1726937039392,0.2831,2560.6,2560.3,1.63743768]
[1726937039605,0.2831,2560.6,2560.4,0.06660168]
[1726937039918,0.2831,2560.6,2560.2,4.63743768]
[1726937040096,0.2831,2560.6,2560.5,0.06657383]
[1726937040291,0.2831,2560.6,2560.3,1.63743768]
[1726937040507,2.281,2560.7,2560.5,0.06657383]
[1726937040707,2.831,2561.0,2560.4,1.70403936]
[1726937040886,2.831,2561.0,2560.6,0.06654597]
[1726937041088,2.831,2561.0,2560.5,0.06657383]
[1726937041432,3.26480243,2561.0,2560.7,0.06651812]
[1726937041583,3.26480243,2561.0,2560.6,0.06654597]
[1726937041788,3.26480243,2561.0,2560.8,0.06649028]
[1726937041987,3.26480243,2561.0,2560.7,0.06651812]
[1726937042293,3.26480243,2561.0,2560.8,0.06649028]
[1726937042815,3.26480243,2561.0,2560.5,3.35288101]
[1726937043221,3.26480243,2561.0,2560.6,0.06654597]
[1726937043384,0.47718268,2560.9,2560.6,0.06654597]
[1726937044100,0.47718268,2560.9,2560.4,1.63743768]
[1726937044504,0.47718268,2560.9,2560.5,0.06657383]
[1726937047929,2.281,2561.0,2560.5,1.78201716]
[1726937048225,2.281,2561.0,2560.5,3.41945484]
[1726937049602,2.281,2561.0,2560.5,1.78201716]
[1726937050319,2.281,2561.0,2560.5,0.06657383]
[1726937050486,2.4963,2560.8,2560.3,1.63743768]
[1726937050686,2.4963,2560.8,2560.4,0.06427716]
[1726937051902,2.4963,2560.8,2560.3,1.63743768]
[1726937052315,2.4963,2560.8,2560.4,0.06427716]
[1726937062997,2.4963,2560.8,2560.2,4.63743768]
[1726937063193,2.2619,2560.6,2560.5,0.06426248]
[1726937063865,2.2619,2560.6,2560.2,4.63743768]
[1726937064066,2.2619,2560.6,2560.5,0.06426248]
[1726937064273,2.2619,2560.6,2560.2,1.63743768]
[1726937064627,2.2619,2560.6,2560.3,0.06431819]
[1726937064831,2.2619,2560.6,2560.2,1.63743768]
[1726937065049,2.2619,2560.6,2560.3,0.06431819]
[1726937065277,2.513053,2560.6,2560.2,1.63743768]
[1726937065432,2.513053,2560.6,2560.3,0.06431819]
[1726937065635,2.513053,2560.6,2560.2,1.63743768]
[1726937065946,2.513053,2560.6,2560.3,0.06431819]
[1726937066467,2.513053,2560.6,2560.4,0.06429033]
[1726937066671,2.513053,2560.6,2560.2,1.63743768]
[1726937066833,2.513053,2560.6,2560.3,0.06431819]
[1726937067033,2.513053,2560.6,2560.2,1.63743768]
[1726937067238,2.513053,2560.6,2560.3,0.06431819]
[1726937067479,2.513053,2560.6,2560.2,1.63743768]
[1726937067835,2.513053,2560.6,2560.3,0.06431819]
[1726937068148,0.2513053,2560.5,2560.1,3.35288101]
[1726937068353,0.2513053,2560.5,2560.4,0.06429033]
[1726937068560,0.2513053,2560.5,2560.1,3.35288101]
[1726937068761,0.2513053,2560.5,2560.4,0.06429033]
[1726937068961,0.2513053,2560.5,2560.1,3.35288101]
[1726937069165,0.2513053,2560.5,2560.4,0.06429033]
[1726937069382,0.2513053,2560.5,2560.1,3.35288101]
[1726937069534,0.2513053,2560.5,2560.4,0.06429033]
[1726937069739,0.2513053,2560.5,2560.1,3.35288101]
[1726937069976,0.2513053,2560.5,2560.4,0.06429033]
[1726937070180,0.2513053,2560.5,2560.1,3.35288101]
[1726937070871,0.2513053,2560.5,2560.2,0.06434604]
[1726937071037,2.2619,2560.6,2560.2,0.06434604]
[1726937071866,2.2619,2560.6,2560.2,1.70178372]
[1726937072538,2.2619,2560.6,2560.2,0.06434604]
[1726937072772,2.2619,2560.6,2560.2,1.70178372]
[1726937072982,2.2619,2560.6,2560.2,0.06434604]
[1726937074455,2.2619,2560.6,2560.2,1.70178372]
[1726937074865,2.2619,2560.6,2560.2,0.06434604]
[1726937075654,2.48809,2560.6,2560.2,0.06434604]
[1726937076395,2.48809,2560.6,2559.9,3.35288101]
[1726937076396,2.2619,2560.4,2559.9,3.35288101]
[1726937076537,2.8119,2560.4,2560.3,0.06436759]
[1726937076743,2.8119,2560.3,2559.9,1.63743768]
[1726937076986,2.8119,2560.3,2559.8,1.63743768]
[1726937077173,2.8119,2560.3,2560.0,0.06456314]
[1726937077486,2.8119,2560.3,2560.1,0.06453528]
[1726937077642,0.3170709,2560.2,2560.1,0.06453528]
[1726937077843,0.3170709,2560.2,2559.9,1.71544333]
[1726937078076,0.3170709,2560.2,2560.1,0.06453528]
[1726937078546,0.3170709,2560.2,2559.9,1.71544333]
[1726937078743,0.3170709,2560.2,2560.1,0.06453528]
[1726937078972,0.3170709,2560.2,2560.0,0.06456314]
[1726937079194,0.3170709,2560.2,2560.1,0.06453528]
[1726937079501,0.3170709,2560.2,2559.9,1.71544333]
[1726937080005,0.3170709,2560.2,2560.0,0.06456314]
[1726937082913,2.2619,2560.3,2560.0,0.06456314]
[1726937086728,2.2675,2560.1,2560.0,0.06456314]
[1726937086928,2.8175,2560.1,2560.0,0.06456314]
[1726937087140,2.8175,2560.1,2559.6,1.63743768]
[1726937087297,2.8175,2560.1,2560.0,0.06480363]
[1726937087494,2.8175,2560.1,2559.6,1.63743768]
[1726937087829,2.8175,2560.1,2559.7,0.06488723]
[1726937089922,2.8175,2560.1,2559.5,1.71544333]
[1726937091534,0.55,2560.0,2559.5,1.71544333]
[1726937091739,2.2675,2559.9,2559.1,3.0]
[1726937091933,2.2675,2559.9,2559.0,0.0376675]
[1726937091934,2.2675,2559.9,2559.3,1.71544333]
[1726937094002,2.2675,2559.9,2559.5,1.71544333]
[1726937101848,2.2675,2559.9,2559.7,1.71544333]
[1726937102953,2.2675,2559.9,2559.8,0.06511637]
[1726937103929,2.2675,2559.9,2559.7,1.71544333]
[1726937104145,2.2675,2559.9,2559.8,0.06511637]
[1726937104345,2.49425,2559.9,2559.8,0.06511637]
[1726937104739,2.49425,2559.9,2559.5,1.71544333]
[1726937105048,2.8744,2560.4,2559.5,1.71544333]
[1726937105218,2.8744,2560.4,2559.6,0.06300156]
[1726937105814,2.8744,2560.4,2559.9,1.71544333]
[1726937106114,2.8744,2560.4,2559.4,3.0]
[1726937106115,2.8744,2560.4,2559.7,1.77841702]
[1726937106318,2.8744,2560.4,2559.7,1.71544333]
[1726937106518,1.03044,2560.3,2559.8,0.06294582]
[1726937106820,1.03044,2560.3,2559.7,1.71544333]
[1726937107151,1.03044,2560.3,2559.9,1.77836128]
[1726937107321,1.03044,2560.3,2559.9,1.71544333]
[1726937107649,1.03044,2560.3,2560.0,0.06289009]
[1726937107804,2.8744,2560.4,2560.0,0.06289009]
[1726937109075,2.8744,2560.4,2559.7,1.71544333]
[1726937109286,2.8744,2560.4,2560.1,0.06286223]
[1726937109483,2.8744,2560.4,2559.7,1.71544333]
[1726937110074,2.8744,2560.4,2559.8,0.06294582]
[1726937110379,0.28744,2560.3,2559.8,0.06294582]
[1726937110574,0.28744,2560.3,2559.7,1.71544333]
[1726937110775,0.28744,2560.3,2559.9,0.06291795]
[1726937110972,0.28744,2560.3,2559.7,1.71544333]
[1726937111195,0.28744,2560.3,2560.0,0.06289009]
[1726937111505,0.28744,2560.3,2559.7,1.71544333]
[1726937111713,0.28744,2560.3,2560.1,0.06279303]
[1726937111874,0.28744,2560.3,2559.7,1.71544333]
[1726937112277,0.28744,2560.3,2559.8,0.06287662]
[1726937112891,0.28744,2560.3,2559.7,1.71544333]
[1726937113095,2.8744,2560.4,2559.9,0.06284875]
[1726937113421,2.8744,2560.4,2560.0,0.06282089]
[1726937113591,2.8744,2560.4,2559.7,1.71544333]
[1726937113789,2.8744,2560.4,2560.1,0.06279303]
[1726937114008,2.8744,2560.4,2559.7,1.71544333]
[1726937114179,2.8744,2560.4,2560.2,0.06276517]
[1726937114380,0.28744,2560.3,2559.7,1.71544333]
[1726937114573,2.8744,2560.4,2560.3,0.06273731]
[1726937114789,2.8744,2560.4,2559.7,1.71544333]
[1726937114989,2.8744,2560.4,2560.3,0.06273731]
[1726937115219,2.8744,2560.4,2559.7,1.71544333]
[1726937115607,2.8744,2560.4,2559.8,0.06287662]
[1726937115922,2.634459,2560.4,2559.9,1.71544333]
[1726937116215,2.3244,2560.4,2560.1,1.71544333]
[1726937116376,7.43,2560.8,2560.3,1.71544333]
[1726937116377,2.3678,2560.7,2560.3,1.71544333]
[1726937116572,2.3678,2560.7,2560.2,0.06276517]
[1726937116773,0.23678,2560.6,2560.1,1.71544333]
[1726937116974,2.3678,2560.8,2560.3,0.06264834]
[1726937117209,2.3678,2560.8,2560.1,1.71544333]
[1726937117521,2.3678,2560.8,2560.4,0.06262048]
[1726937117813,2.9178,2560.7,2560.1,1.71544333]
[1726937118026,2.9178,2560.7,2560.5,0.06259263]
[1726937118328,2.3678,2560.5,2560.1,1.71544333]
[1726937119299,2.3678,2560.5,2559.9,4.71544333]
[1726937119479,0.55,2560.4,2559.9,1.71544333]
[1726937119679,2.3678,2560.3,2559.9,1.71544333]
[1726937123983,2.3678,2560.3,2559.7,1.71544333]
[1726937124184,2.3678,2560.1,2559.7,1.71544333]
[1726937124685,2.3678,2560.1,2559.8,0.06272175]
[1726937125122,2.3678,2560.1,2559.7,1.71544333]
[1726937125305,2.3678,2560.1,2559.9,0.06269388]
[1726937125486,2.3678,2560.1,2559.8,0.06272175]
[1726937125687,2.3678,2560.1,2560.0,0.06266602]
[1726937125882,2.60458,2560.1,2559.9,0.06269388]
[1726937126224,2.60458,2560.1,2560.0,0.06266602]
[1726937126419,2.60458,2560.1,2559.7,1.71544333]
[1726937126620,2.3678,2560.1,2560.0,0.06266602]
[1726937126786,2.3678,2560.1,2559.7,1.71544333]
[1726937126986,2.3678,2560.1,2560.0,0.06266602]
[1726937127197,2.3678,2560.1,2559.7,1.71544333]
[1726937127523,2.3678,2560.1,2560.0,0.06266602]
[1726937127742,2.60458,2560.1,2559.7,1.71544333]
[1726937127902,2.60458,2560.1,2560.0,0.06266602]
[1726937128101,2.60458,2560.1,2559.7,1.71544333]
[1726937128346,2.60458,2560.1,2560.0,0.06266602]
[1726937128544,2.60458,2560.1,2559.7,1.71544333]
[1726937129141,2.60458,2560.1,2559.8,0.06272175]
[1726937129511,2.60458,2560.1,2559.7,1.71544333]
[1726937129717,2.60458,2560.1,2559.9,0.06269388]
[1726937129936,2.60458,2560.1,2559.8,0.06272175]
[1726937130250,2.60458,2560.1,2559.9,0.06269388]
[1726937130547,0.260458,2560.0,2559.7,1.71544333]
[1726937133239,2.3014,2559.9,2559.5,1.63581935]
[1726937133448,2.3014,2559.9,2559.2,3.35126268]